fUSD/lending_fUSD_20250814
["ID","MTS","AMOUNT","RATE_DAILY","PERIOD"]
[379157590,1755168667931,-400.0,0.00035616,12]
[379157591,1755168667941,-2061.62,0.00035616,12]
[379157592,1755168667952,-400.0,0.00035616,10]
[379157593,1755168667961,-500.0,0.00035616,12]
[379157594,1755168667971,-8623.3,0.00035616,12]
[379157595,1755168667981,-5164.65,0.00035616,12]
[379157596,1755168667991,-500.0,0.00035616,12]
[379157597,1755168668001,-400.0,0.00035616,12]
[379157598,1755168668011,-500.0,0.00035616,12]
[379157599,1755168668020,-400.0,0.00035616,12]
[379157600,1755168668034,-500.0,0.00035616,12]
[379157601,1755168668047,-1140.86,0.00035616,12]
[379157602,1755168668056,-500.0,0.00035616,12]
[379157603,1755168668066,-400.0,0.00035616,12]
[379157604,1755168668075,-500.0,0.00035616,12]
[379157605,1755168668086,-500.0,0.00035616,12]
[379157606,1755168668095,-500.0,0.00035616,12]
[379157607,1755168668105,-400.0,0.00035616,12]
[379157608,1755168668115,-4686.22,0.00035616,12]
[379157609,1755168668125,-1583.88,0.00035616,12]
[379157610,1755168668135,-400.0,0.00035616,12]
[379157611,1755168668144,-21596.54,0.00035616,12]
[379157612,1755168668153,-6071.02,0.00035616,12]
[379157613,1755168668164,-4222.07,0.00035616,12]
[379157614,1755168668173,-2764.69,0.00035616,12]
[379157615,1755168668183,-730.76,0.00035616,12]
[379157616,1755168668193,-728.13,0.00035616,12]
[379157617,1755168668203,-400.0,0.00035616,12]
[379157618,1755168668212,-10013.03,0.00035616,12]
[379157619,1755168668222,-3272.5,0.00035616,12]
[379157620,1755168668232,-1780.56,0.00035616,12]
[379157621,1755168668242,-17961.06,0.00035616,12]
[379157622,1755168668251,-426.76,0.00035616,12]
[379157623,1755168668260,-1246.89,0.00035616,12]
[379157624,1755168668271,-1861.97,0.00035616,12]
[379157625,1755168668284,-400.0,0.00035616,12]
[379157626,1755168668294,-7580.66,0.00035616,12]
[379157627,1755168668303,-1754.72,0.00035616,12]
[379157628,1755168668313,-8969.17,0.00035616,12]
[379157629,1755168668323,-3168.46,0.00035616,12]
[379157630,1755168668333,-12753.37,0.00035616,12]
[379157631,1755168668343,-2069.91,0.00035616,12]
[379157632,1755168668353,-544.95,0.00035616,7]
[379157633,1755168668362,-400.0,0.00035616,12]
[379157634,1755168668372,-4962.2,0.00035616,12]
[379157635,1755168668381,-400.0,0.00035616,12]
[379157636,1755168668391,-400.0,0.00035616,12]
[379157637,1755168668400,-400.0,0.00035616,12]
[379157638,1755168668409,-1668.86,0.00035616,12]
[379157639,1755168668419,-3235.74,0.00035616,12]
[379157640,1755168668428,-1155.93,0.00035616,12]
[379157641,1755168668437,-5850.29,0.00035616,12]
[379157642,1755168668447,-3998.25,0.00035616,12]
[379157643,1755168668457,-400.0,0.00035616,12]
[379157644,1755168668466,-2413.84,0.00035616,12]
[379157645,1755168668476,-3619.08,0.00035616,12]
[379157646,1755168668486,-7477.41,0.00035616,12]
[379157647,1755168668496,-9069.07,0.00035616,12]
[379157648,1755168668506,-1395.65,0.00035616,12]
[379157649,1755168668515,-891.6,0.00035616,12]
[379157650,1755168668525,-400.0,0.00035616,12]
[379157651,1755168668535,-3853.58,0.00035616,12]
[379157652,1755168668545,-400.0,0.00035616,12]
[379157653,1755168668555,-4111.36,0.00035616,12]
[379157654,1755168668565,-535.55,0.00035616,12]
[379157655,1755168668575,-8507.7,0.00035616,12]
[379157656,1755168668585,-5787.38,0.00035616,12]
[379157657,1755168668596,-5802.35,0.00035616,12]
[379157658,1755168668605,-3173.16,0.00035616,12]
[379157659,1755168668615,-400.0,0.00035616,12]
[379157660,1755168668625,-1005.47,0.00035616,12]
[379157661,1755168668634,-400.0,0.00035616,12]
[379157662,1755168668644,-5037.63,0.00035616,12]
[379157663,1755168668653,-13537.51,0.00035616,12]
[379157664,1755168668663,-400.0,0.00035616,12]
[379157665,1755168668672,-2227.79,0.00035616,12]
[379157666,1755168668681,-3801.55,0.00035616,12]
[379157667,1755168668690,-400.0,0.00035616,12]
[379157668,1755168668699,-2849.96,0.00035616,12]
[379157669,1755168668708,-6203.51,0.00035616,12]
[379157670,1755168668717,-5777.11,0.00035616,12]
[379157671,1755168668726,-400.0,0.00035616,12]
[379157672,1755168668736,-400.0,0.00035616,12]
[379157673,1755168668744,-400.0,0.00035616,12]
[379157674,1755168668755,-515.04,0.00035616,12]
[379157675,1755168668764,-1277.5,0.00035616,12]
[379157676,1755168668776,-774.26,0.00035616,12]
[379157677,1755168668786,-400.0,0.00035616,12]
[379157678,1755168668795,-2830.4,0.00035616,12]
[379157679,1755168668805,-5654.71,0.00035616,12]
[379157680,1755168668815,-2750.75,0.00035616,12]
[379157681,1755168668824,-7160.78,0.00035616,12]
[379157682,1755168668834,-400.0,0.00035616,12]
[379157683,1755168668844,-400.0,0.00035616,12]
[379157684,1755168668853,-4771.52,0.00035616,12]
[379157685,1755168668863,-896.8,0.00035616,12]
[379157686,1755168668872,-2017.83,0.00035616,12]
[379157687,1755168668882,-2975.51,0.00035616,12]
[379157688,1755168668893,-400.0,0.00035616,12]
[379157689,1755168668903,-6843.78,0.00035616,12]
[379157690,1755168668912,-3688.5,0.00035616,12]
[379157691,1755168668921,-2007.48,0.00035616,12]
[379157692,1755168668931,-400.0,0.00035616,12]
[379157693,1755168668940,-400.0,0.00035616,12]
[379157694,1755168668950,-400.0,0.00035616,12]
[379157695,1755168668960,-400.0,0.00035616,12]
[379157696,1755168668970,-400.0,0.00035616,12]
[379157697,1755168668979,-3097.5,0.00035616,12]
[379157698,1755168668989,-2636.57,0.00035616,12]
[379157699,1755168668999,-400.0,0.00035616,12]
[379157700,1755168669008,-400.0,0.00035616,12]
[379157701,1755168669382,-3195.62,0.00035616,12]
[379157702,1755168669392,-1102.32,0.00035616,12]
[379157703,1755168669401,-507.13,0.00035616,12]
[379157704,1755168669411,-7257.83,0.00035616,12]
[379157705,1755168669421,-7904.2,0.00035616,12]
[379157706,1755168669430,-8503.95,0.00035616,12]
[379157707,1755168669439,-683.52,0.00035616,12]
[379157708,1755168669449,-5733.87,0.00035616,12]
[379157709,1755168669459,-401.12,0.00035616,12]
[379157710,1755168669468,-5996.56,0.00035616,12]
[379157711,1755168669478,-636.64,0.00035616,12]
[379157712,1755168669487,-9190.02,0.00035616,12]
[379157713,1755168669496,-400.0,0.00035616,12]
[379157714,1755168669507,-400.0,0.00035616,12]
[379157715,1755168669516,-595.03,0.00035616,12]
[379157716,1755168669527,-400.0,0.00035616,12]
[379157717,1755168669537,-400.0,0.00035616,12]
[379157718,1755168669547,-400.0,0.00035616,12]
[379157719,1755168669556,-984.78,0.00035616,12]
[379157720,1755168669565,-838.84,0.00035616,12]
[379157721,1755168669575,-400.0,0.00035616,12]
[379157722,1755168669584,-407.08267665,0.00035616,12]
[379157723,1755168669593,-8955.3,0.00035616,12]
[379157724,1755168669602,-402.63,0.00035616,12]
[379157725,1755168669612,-469.25,0.00035616,12]
[379157726,1755168669621,-400.0,0.00035616,12]
[379157727,1755168669631,-598.04,0.00035616,12]
[379157728,1755168669640,-400.0,0.00035616,12]
[379157729,1755168669650,-4725.15,0.00035616,12]
[379157730,1755168669659,-1141.82,0.00035616,12]
[379157731,1755168669668,-400.0,0.00035616,12]
[379157732,1755168669678,-179.185352,0.00035616,7]
[379157733,1755168669687,-179.185352,0.00035616,7]
[379157734,1755168669696,-1164.79,0.00035616,12]
[379157735,1755168669706,-3326.56,0.00035616,12]
[379157736,1755168669715,-400.0,0.00035616,12]
[379157737,1755168669724,-400.0,0.00035616,12]
[379157738,1755168669733,-5861.73,0.00035616,2]
[379157739,1755168669743,-402.63271861,0.00035616,12]
[379157740,1755168669752,-400.0,0.00035616,12]
[379157741,1755168669762,-16093.82,0.00035616,12]
[379157742,1755168669771,-1098.34,0.00035616,12]
[379157743,1755168669783,-179.185352,0.00035616,7]
[379157744,1755168669792,-179.185352,0.00035616,7]
[379157745,1755168669801,-2919.99,0.00035616,12]
[379157746,1755168669811,-5438.25,0.00035616,12]
[379157747,1755168669820,-890.65,0.00035616,12]
[379157748,1755168669830,-400.0,0.00035616,12]
[379157749,1755168669839,-400.0,0.00035616,12]
[379157750,1755168669848,-2827.08,0.00035616,12]
[379157751,1755168669858,-400.0,0.00035616,12]
[379157752,1755168669867,-12637.13,0.00035616,12]
[379157753,1755168669876,-1286.76,0.00035616,12]
[379157754,1755168669885,-497.83,0.00035616,12]
[379157755,1755168669894,-1114.92,0.00035616,12]
[379157756,1755168669903,-479.77596282,0.00035616,12]
[379157757,1755168669913,-2817.66,0.00035616,12]
[379157758,1755168669923,-5721.1,0.00035616,12]
[379157759,1755168669932,-400.0,0.00035616,12]
[379157760,1755168669941,-527.15,0.00035616,12]
[379157761,1755168669951,-400.0,0.00035616,12]
[379157762,1755168669960,-16090.78,0.00035616,12]
[379157763,1755168669969,-1267.1,0.00035616,12]
[379157764,1755168669978,-1790.88,0.00035616,12]
[379157765,1755168669987,-1456.73,0.00035616,12]
[379157766,1755168669996,-777.5,0.00035616,12]
[379157767,1755168670006,-2552.37,0.00035616,12]
[379157768,1755168670015,-724.51,0.00035616,12]
[379157769,1755168670027,-3227.33,0.00035616,12]
[379157770,1755168670039,-400.0,0.00035616,12]
[379157771,1755168670059,-400.0,0.00035616,12]
[379157772,1755168670080,-400.0,0.00035616,12]
[379157773,1755168670091,-959.24,0.00035616,12]
[379157774,1755168670100,-2873.31,0.00035616,12]
[379157775,1755168670110,-2015.0,0.00035616,12]
[379157776,1755168670121,-4422.01,0.00035616,12]
[379157777,1755168670131,-2952.88,0.00035616,12]
[379157778,1755168670140,-400.0,0.00035616,12]
[379157779,1755168670150,-400.0,0.00035616,12]
[379157780,1755168670161,-11075.69,0.00035616,12]
[379157781,1755168670170,-490.501639,0.00035616,7]
[379157782,1755168670180,-400.0,0.00035616,12]
[379157783,1755168670189,-400.0,0.00035616,12]
[379157784,1755168670200,-5369.75,0.00035616,12]
[379157785,1755168670209,-407.10003095,0.00035616,12]
[379157786,1755168670219,-490.501639,0.00035616,7]
[379157787,1755168670229,-1566.77,0.00035616,12]
[379157788,1755168670239,-997.98,0.00035616,12]
[379157789,1755168670248,-490.501639,0.00035616,7]
[379157790,1755168670258,-758.74,0.00035616,12]
[379157791,1755168670267,-3403.77,0.00035616,12]
[379157792,1755168670280,-400.0,0.00035616,12]
[379157793,1755168670290,-560.16,0.00035616,12]
[379157794,1755168670300,-1323.04,0.00035616,12]
[379157795,1755168670310,-400.0,0.00035616,12]
[379157796,1755168670319,-490.501639,0.00035616,7]
[379157797,1755168670329,-490.501639,0.00035616,7]
[379157798,1755168670345,-4287.66,0.00035616,12]
[379157799,1755168670364,-400.0,0.00035616,12]
[379157800,1755168670374,-490.501639,0.00035616,7]
[379157801,1755168670383,-400.0,0.00035616,12]
[379157802,1755168670393,-400.0,0.00035616,12]
[379157803,1755168670402,-401.62567205,0.00035616,2]
[379157804,1755168670412,-5504.88,0.00035616,12]
[379157805,1755168670422,-302.04332044,0.00035616,2]
[379157806,1755168670431,-400.0,0.00035616,12]
[379157807,1755168670441,-500.0,0.00035616,12]
[379157808,1755168670451,-400.0,0.00035616,12]
[379157809,1755168670460,-8590.07,0.00035616,12]
[379157810,1755168670470,-392.5,0.00035616,12]
[379157811,1755168670480,-400.0,0.00035616,12]
[379157812,1755168670490,-400.0,0.00035616,12]
[379157814,1755168670500,-400.0,0.00035616,12]
[379157815,1755168670509,-1432.17,0.00035616,12]
[379157816,1755168670520,-680.98,0.00035616,12]
[379157817,1755168670534,-400.0,0.00035616,12]
[379157818,1755168670546,-400.0,0.00035616,12]
[379157819,1755168670556,-400.0,0.00035616,12]
[379157820,1755168670567,-1906.91,0.00035616,12]
[379157821,1755168670577,-400.0,0.00035616,12]
[379157822,1755168670588,-2159.79,0.00035616,12]
[379157823,1755168670598,-400.0,0.00035616,12]
[379157824,1755168670608,-2169.33,0.00035616,12]
[379157825,1755168670618,-1990.07,0.00035616,12]
[379157826,1755168670628,-1218.14,0.00035616,2]
[379157827,1755168670638,-12847.61,0.00035616,12]
[379157828,1755168670648,-400.0,0.00035616,12]
[379157829,1755168670658,-400.0,0.00035616,12]
[379157830,1755168670669,-400.0,0.00035616,12]
[379157831,1755168670679,-979.48,0.00035616,12]
[379157832,1755168670689,-6142.19,0.00035616,12]
[379157833,1755168670698,-933.66,0.00035616,12]
[379157834,1755168670709,-469.05,0.00035616,12]
[379157835,1755168670719,-5157.7,0.00035616,12]
[379157836,1755168670730,-400.0,0.00035616,12]
[379157837,1755168670740,-158.31371085,0.00035616,12]
[379157838,1755168670751,-9328.72,0.00035616,12]
[379157839,1755168670761,-400.0,0.00035616,12]
[379157840,1755168670771,-3375.33,0.00035616,12]
[379157841,1755168670790,-1727.93,0.00035616,12]
[379157842,1755168670800,-400.0,0.00035616,12]
[379157843,1755168670810,-9318.35,0.00035616,12]
[379157844,1755168670819,-400.0,0.00035616,12]
[379157845,1755168670829,-576.3,0.00035616,12]
[379157846,1755168670838,-400.0,0.00035616,12]
[379157847,1755168670848,-3329.41,0.00035616,12]
[379157848,1755168670857,-1724.5,0.00035616,12]
[379157849,1755168670867,-400.0,0.00035616,12]
[379157850,1755168670877,-3884.59,0.00035616,12]
[379157851,1755168670887,-27772.38,0.00035616,12]
[379157852,1755168670897,-457.69,0.00035616,12]
[379157853,1755168670908,-508.79,0.00035616,12]
[379157854,1755168670917,-400.0,0.00035616,12]
[379157855,1755168670926,-1635.02,0.00035616,12]
[379157856,1755168670936,-11701.41,0.00035616,12]
[379157857,1755168670945,-2470.93,0.00035616,12]
[379157858,1755168670955,-4567.49,0.00035616,12]
[379157859,1755168670964,-400.0,0.00035616,12]
[379157860,1755168670974,-1686.22,0.00035616,12]
[379157861,1755168670983,-826.38,0.00035616,12]
[379157862,1755168670992,-400.0,0.00035616,12]
[379157863,1755168671001,-400.0,0.00035616,12]
[379157864,1755168671011,-400.0,0.00035616,12]
[379157865,1755168671021,-741.691709,0.00035616,7]
[379157866,1755168671037,-400.0,0.00035616,12]
[379157867,1755168671049,-400.0,0.00035616,12]
[379157868,1755168671058,-3184.42,0.00035616,12]
[379157869,1755168671068,-1500.0,0.00035616,120]
[379157870,1755168671079,-218.74,0.0003565,120]
[379157871,1755168671090,-500.0,0.00035673,5]
[379157872,1755168671100,-412051.35,0.000357,14]
[379157873,1755168671109,-5859.08,0.000357,30]
[379157874,1755168671121,-151.0,0.00035724,2]
[379157875,1755168671132,-500.0,0.0003573,12]
[379157876,1755168671144,-754.04,0.00035742,12]
[379157877,1755168671155,-521.84,0.00035749,12]
[379157878,1755168671166,-157.92165438,0.00035749,12]
[379157879,1755168671175,-817.85,0.00035749,12]
[379157880,1755168671185,-792.95,0.00035749,12]
[379157881,1755168671195,-709.18,0.00035749,12]
[379157882,1755168671205,-654.67,0.00035749,12]
[379157883,1755168671215,-107703.91950284,0.0003575,30]
[379157884,1755168671225,-937.118323,0.0003575,7]
[379157885,1755168671234,-937.118323,0.0003575,7]
[379157886,1755168671244,-151.0,0.0003575,7]
[379157887,1755168671254,-809.809754,0.0003575,7]
[379157888,1755168671264,-809.809754,0.0003575,7]
[379157889,1755168671274,-151.0,0.0003575,7]
[379157890,1755168671287,-179.185352,0.0003575,7]
[379157891,1755168671296,-179.185352,0.0003575,7]
[379157892,1755168671305,-521.84,0.00035751,12]
[379157893,1755168671314,-817.85,0.00035751,12]
[379157894,1755168671324,-792.95,0.00035751,12]
[379157895,1755168671333,-754.04,0.00035751,12]
[379157896,1755168671343,-709.18,0.00035751,12]
[379157897,1755168671352,-654.67,0.00035751,12]
[379157898,1755168671361,-439.075625,0.00035751,7]
[379157899,1755168671370,-439.075625,0.00035751,7]
[379157900,1755168671380,-500.0,0.00035751,12]
[379157901,1755168671390,-500.0,0.00035751,12]
[379157902,1755168671399,-300.0,0.00035752,10]
[379157903,1755168671409,-666.0,0.00035752,10]
[379157904,1755168671418,-300.0,0.00035752,10]
[379157905,1755168671427,-521.84,0.00035752,12]
[379157906,1755168671437,-521.84,0.00035752,12]
[379157907,1755168671446,-521.84,0.00035752,12]
[379157908,1755168671455,-521.84,0.00035752,12]
[379157909,1755168671464,-521.84,0.00035752,12]
[379157910,1755168671474,-817.85,0.00035752,12]
[379157911,1755168671483,-817.85,0.00035752,12]
[379157912,1755168671493,-817.85,0.00035752,12]
[379157913,1755168671502,-817.85,0.00035752,12]
[379157914,1755168671512,-817.85,0.00035752,12]
[379157915,1755168671522,-792.95,0.00035752,12]
[379157916,1755168671535,-792.95,0.00035752,12]
[379157917,1755168671545,-792.95,0.00035752,12]
[379157918,1755168671556,-792.95,0.00035752,12]
[379157919,1755168671565,-792.95,0.00035752,12]
[379157920,1755168671575,-754.04,0.00035752,12]
[379157921,1755168671585,-754.04,0.00035752,12]
[379157922,1755168671595,-754.04,0.00035752,12]
[379157923,1755168671604,-754.04,0.00035752,12]
[379157924,1755168671613,-754.04,0.00035752,12]
[379157925,1755168671623,-709.18,0.00035752,12]
[379157926,1755168671632,-709.18,0.00035752,12]
[379157927,1755168671641,-709.18,0.00035752,12]
[379157928,1755168671651,-709.18,0.00035752,12]
[379157929,1755168671660,-709.18,0.00035752,12]
[379157930,1755168671669,-654.67,0.00035752,12]
[379157931,1755168671678,-654.67,0.00035752,12]
[379157932,1755168671687,-654.67,0.00035752,12]
[379157933,1755168671696,-654.67,0.00035752,12]
[379157934,1755168671706,-654.67,0.00035752,12]
[379157935,1755168671715,-500.0,0.00035752,12]
[379157936,1755168671725,-500.0,0.00035752,12]
[379157937,1755168671735,-500.0,0.00035752,12]
[379157938,1755168671744,-600.0,0.00035752,12]
[379157939,1755168671753,-187.614641,0.00035753,7]
[379157940,1755168671762,-187.614641,0.00035753,7]
[379157941,1755168671771,-151.0,0.00035753,7]
[379157942,1755168671783,-203.872809,0.00035753,7]
[379157943,1755168671918,-203.872809,0.00035753,7]
[379157944,1755168671928,-151.0,0.00035753,7]
[379157945,1755168671938,-151.0,0.00035753,7]
[379157946,1755168671947,-151.0,0.00035753,7]
[379157947,1755168671957,-151.0,0.00035753,7]
[379157948,1755168671966,-151.0,0.00035753,7]
[379157949,1755168671975,-151.0,0.00035753,7]
[379157950,1755168671985,-151.0,0.00035753,7]
[379157951,1755168671994,-151.0,0.00035753,7]
[379157952,1755168672003,-156.262019,0.00035753,7]
[379157953,1755168672012,-156.262019,0.00035753,7]
[379157954,1755168672021,-156.262019,0.00035753,7]
[379157955,1755168672034,-170.500381,0.00035753,7]
[379157956,1755168672046,-156.262019,0.00035753,7]
[379157957,1755168672055,-170.500381,0.00035753,7]
[379157958,1755168672064,-188.143562,0.00035753,7]
[379157959,1755168672073,-188.143562,0.00035753,7]
[379157960,1755168672083,-188.143562,0.00035753,7]
[379157961,1755168672092,-188.143562,0.00035753,7]
[379157962,1755168672100,-400.0,0.00035753,12]
[379157963,1755168672110,-402.59775378,0.00035753,12]
[379157964,1755168672121,-400.0,0.00035753,12]
[379157965,1755168672130,-400.0,0.00035753,12]
[379157966,1755168672139,-514.946844,0.00035753,7]
[379157967,1755168672147,-514.946844,0.00035753,7]
[379157968,1755168672157,-151.0,0.00035753,7]
[379157969,1755168672166,-514.946844,0.00035753,7]
[379157970,1755168672175,-514.946844,0.00035753,7]
[379157971,1755168672184,-400.0,0.00035753,12]
[379157972,1755168672193,-400.0,0.00035753,12]
[379157973,1755168672203,-151.0,0.00035753,7]
[379157974,1755168672212,-400.0,0.00035753,12]
[379157975,1755168672221,-1345.511018,0.00035753,7]
[379157976,1755168672230,-400.0,0.00035753,12]
[379157977,1755168672240,-1345.511018,0.00035753,7]
[379157978,1755168672250,-400.0,0.00035753,12]
[379157979,1755168672260,-151.0,0.00035753,7]
[379157980,1755168672270,-151.0,0.00035753,7]
[379157981,1755168672282,-159.551238,0.00035753,7]
[379157982,1755168672291,-400.0,0.00035753,12]
[379157983,1755168672300,-400.0,0.00035753,12]
[379157984,1755168672309,-400.0,0.00035753,12]
[379157985,1755168672319,-400.0,0.00035753,12]
[379157986,1755168672328,-151.0,0.00035753,7]
[379157987,1755168672337,-151.0,0.00035753,7]
[379157988,1755168672347,-400.0,0.00035753,12]
[379157989,1755168672357,-400.0,0.00035753,12]
[379157990,1755168672366,-400.0,0.00035753,12]
[379157991,1755168672375,-151.0,0.00035753,7]
[379157992,1755168672385,-400.0,0.00035753,12]
[379157993,1755168672394,-400.0,0.00035753,12]
[379157994,1755168672404,-400.0,0.00035753,12]
[379157995,1755168672413,-151.0,0.00035753,7]
[379157996,1755168672423,-151.0,0.00035753,7]
[379157997,1755168672433,-400.0,0.00035753,12]
[379157998,1755168672442,-400.0,0.00035753,12]
[379157999,1755168672453,-400.0,0.00035753,12]
[379158000,1755168672462,-400.0,0.00035753,12]
[379158001,1755168672472,-151.0,0.00035753,7]
[379158002,1755168672482,-937.118323,0.00035753,7]
[379158003,1755168672491,-151.0,0.00035753,7]
[379158004,1755168672500,-400.0,0.00035753,12]
[379158005,1755168672509,-937.118323,0.00035753,7]
[379158006,1755168672519,-543.73974475,0.00035753,12]
[379158007,1755168672533,-400.0,0.00035753,12]
[379158008,1755168672543,-151.0,0.00035753,7]
[379158009,1755168672552,-400.0,0.00035753,12]
[379158010,1755168672562,-400.0,0.00035753,12]
[379158011,1755168672572,-151.0,0.00035753,7]
[379158012,1755168672581,-400.0,0.00035753,12]
[379158013,1755168672591,-151.0,0.00035753,7]
[379158014,1755168672600,-151.0,0.00035753,7]
[379158015,1755168672610,-400.0,0.00035753,12]
[379158016,1755168672619,-400.0,0.00035753,12]
[379158017,1755168672628,-213.781698,0.00035753,7]
[379158018,1755168672637,-400.0,0.00035753,12]
[379158019,1755168672647,-400.0,0.00035753,12]
[379158020,1755168672657,-213.781698,0.00035753,7]
[379158021,1755168672666,-400.0,0.00035753,12]
[379158022,1755168672675,-400.0,0.00035753,12]
[379158023,1755168672685,-400.0,0.00035753,12]
[379158024,1755168672695,-400.0,0.00035753,12]
[379158025,1755168672704,-2403.82,0.00035753,12]
[379158026,1755168672714,-400.0,0.00035753,12]
[379158027,1755168672723,-400.0,0.00035753,12]
[379158028,1755168672734,-151.0,0.00035753,7]
[379158029,1755168672744,-818.0,0.00035753,12]
[379158030,1755168672753,-478.52,0.00035753,12]
[379158031,1755168672763,-400.0,0.00035753,12]
[379158032,1755168672773,-400.0,0.00035753,12]
[379158033,1755168672789,-221.755356,0.00035753,7]
[379158034,1755168672799,-1360.743736,0.00035753,7]
[379158035,1755168672808,-1360.743736,0.00035753,7]
[379158036,1755168672817,-500.0,0.00035753,2]
[379158037,1755168672826,-221.755356,0.00035753,7]
[379158038,1755168672836,-1360.743736,0.00035753,7]
[379158039,1755168672846,-400.0,0.00035753,12]
[379158040,1755168672855,-1360.743736,0.00035753,7]
[379158041,1755168672865,-542.52,0.00035753,12]
[379158042,1755168672876,-400.0,0.00035753,12]
[379158043,1755168672885,-400.0,0.00035753,12]
[379158044,1755168672895,-151.0,0.00035753,7]
[379158045,1755168672905,-400.0,0.00035753,12]
[379158046,1755168672914,-151.0,0.00035753,7]
[379158047,1755168672923,-400.0,0.00035753,12]
[379158048,1755168672932,-151.0,0.00035753,7]
[379158049,1755168672940,-400.0,0.00035753,12]
[379158050,1755168672950,-400.0,0.00035753,12]
[379158051,1755168672959,-3351.72,0.00035753,12]
[379158052,1755168672967,-400.0,0.00035753,12]
[379158053,1755168672977,-400.0,0.00035753,12]
[379158054,1755168672986,-151.0,0.00035753,7]
[379158055,1755168672995,-876.99,0.00035753,12]
[379158056,1755168673005,-151.0,0.00035753,7]
[379158057,1755168673014,-400.0,0.00035753,12]
[379158058,1755168673024,-400.0,0.00035753,12]
[379158059,1755168673041,-400.0,0.00035753,12]
[379158060,1755168673050,-400.0,0.00035753,12]
[379158061,1755168673059,-811.39,0.00035753,12]
[379158062,1755168673068,-2170.03,0.00035753,12]
[379158063,1755168673078,-400.0,0.00035753,12]
[379158064,1755168673087,-400.0,0.00035753,12]
[379158065,1755168673096,-1550.96,0.00035753,12]
[379158066,1755168673106,-400.0,0.00035753,12]
[379158067,1755168673115,-400.0,0.00035753,12]
[379158068,1755168673125,-2083.47,0.00035753,12]
[379158069,1755168673136,-152.121534,0.00035753,7]
[379158070,1755168673146,-400.0,0.00035753,12]
[379158071,1755168673155,-400.0,0.00035753,7]
[379158072,1755168673164,-400.0,0.00035753,12]
[379158073,1755168673173,-400.0,0.00035753,12]
[379158074,1755168673182,-1038.3,0.00035753,12]
[379158075,1755168673191,-400.0,0.00035753,12]
[379158076,1755168673201,-152.121534,0.00035753,7]
[379158077,1755168673210,-1770.93,0.00035753,12]
[379158078,1755168673219,-400.0,0.00035753,12]
[379158079,1755168673229,-400.0,0.00035753,12]
[379158080,1755168673238,-471.58,0.00035753,12]
[379158081,1755168673248,-572.57,0.00035753,12]
[379158082,1755168673258,-568.43,0.00035753,12]
[379158083,1755168673267,-400.0,0.00035753,12]
[379158084,1755168673276,-468.42,0.00035753,12]
[379158085,1755168673288,-1599.25,0.00035753,12]
[379158087,1755168673298,-400.0,0.00035753,12]
[379158088,1755168673307,-2000.0,0.00035753,30]
[379158090,1755168673317,-1113.53,0.00035753,12]
[379158091,1755168673327,-151.0,0.00035753,7]
[379158092,1755168673336,-400.0,0.00035753,12]